[Event "Titled Tuesday Blitz May 30 Early 2023"]
[White "Sousa, Andre Ventura"]
[Black "Csonka, Balazs"]
[WhiteFideId "1917617"]
[BlackFideId "742910"]
[WhiteElo "2333"]
[BlackElo "2404"]
[Result "1/2-1/2"]
[Round "07"]
[TimeControl "180+2"]
[Date "2023.05.30"]
[WhiteClock "0:00:14"]
[BlackClock "0:00:03"]

1. e4 {[%clk 0:03:00]}  e6 {[%clk 0:02:59]} 2. d4 {[%clk 0:03:00]}  d5 {[%clk 0:03:00]} 3. e5 {[%clk 0:03:01]}  c5 {[%clk 0:02:57]} 4. c3 {[%clk 0:03:02]}  Nc6 {[%clk 0:02:53]} 5. Nf3 {[%clk 0:03:02]}  Bd7 {[%clk 0:02:52]} 6. a3 {[%clk 0:03:02]}  c4 {[%clk 0:02:46]} 7. Nbd2 {[%clk 0:03:01]}  Nge7 {[%clk 0:02:46]} 8. g3 {[%clk 0:03:01]}  Nc8 {[%clk 0:02:46]} 9. Bg2 {[%clk 0:03:01]}  Nb6 {[%clk 0:02:46]} 10. O-O {[%clk 0:03:02]}  Na5 {[%clk 0:02:45]} 11. Ne1 {[%clk 0:03:02]}  Ba4 {[%clk 0:02:32]} 12. Qe2 {[%clk 0:03:02]}  h5 {[%clk 0:02:29]} 13. f4 {[%clk 0:03:01]}  g6 {[%clk 0:02:28]} 14. Ndf3 {[%clk 0:02:59]}  Be7 {[%clk 0:02:15]} 15. Be3 {[%clk 0:02:59]}  Qd7 {[%clk 0:02:10]} 16. Ng5 {[%clk 0:03:00]}  Bf8 {[%clk 0:01:31]} 17. Nef3 {[%clk 0:02:50]}  O-O-O {[%clk 0:01:24]} 18. Bh3 {[%clk 0:02:45]}  Bh6 {[%clk 0:01:20]} 19. Nxf7 {[%clk 0:02:09]}  Qxf7 {[%clk 0:01:18]} 20. Ng5 {[%clk 0:02:09]}  Bxg5 {[%clk 0:01:18]} 21. fxg5 {[%clk 0:02:10]}  Qe8 {[%clk 0:01:03]} 22. Rf6 {[%clk 0:02:10]}  Bd7 {[%clk 0:01:04]} 23. Qc2 {[%clk 0:02:02]}  Rg8 {[%clk 0:01:02]} 24. Raf1 {[%clk 0:01:52]}  Kb8 {[%clk 0:00:57]} 25. Rf7 {[%clk 0:01:37]}  Nc6 {[%clk 0:00:51]} 26. Rh7 {[%clk 0:01:15]}  Nc8 {[%clk 0:00:30]} 27. Rff7 {[%clk 0:01:10]}  N8e7 {[%clk 0:00:24]} 28. Bc1 {[%clk 0:00:45]}  Bc8 {[%clk 0:00:23]} 29. Rf6 {[%clk 0:00:45]}  Nf5 {[%clk 0:00:20]} 30. Bxf5 {[%clk 0:00:38]}  exf5 {[%clk 0:00:17]} 31. Bf4 {[%clk 0:00:37]}  Be6 {[%clk 0:00:15]} 32. Qa4 {[%clk 0:00:32]}  Rd7 {[%clk 0:00:14]} 33. Rh6 {[%clk 0:00:27]}  Ka8 {[%clk 0:00:14]} 34. Qb5 {[%clk 0:00:27]}  Rdg7 {[%clk 0:00:14]} 35. Qc5 {[%clk 0:00:26]}  Qd7 {[%clk 0:00:12]} 36. h4 {[%clk 0:00:24]}  b6 {[%clk 0:00:11]} 37. Qb5 {[%clk 0:00:19]}  Kb7 {[%clk 0:00:10]} 38. Qa4 {[%clk 0:00:18]}  a6 {[%clk 0:00:10]} 39. Qc2 {[%clk 0:00:19]}  b5 {[%clk 0:00:07]} 40. Qg2 {[%clk 0:00:19]}  Nd8 {[%clk 0:00:06]} 41. Kh2 {[%clk 0:00:15]}  Nc6 {[%clk 0:00:07]} 42. Kh3 {[%clk 0:00:16]}  Qe8 {[%clk 0:00:05]} 43. Kh2 {[%clk 0:00:16]}  Rd7 {[%clk 0:00:05]} 44. Kh3 {[%clk 0:00:15]}  Rgg7 {[%clk 0:00:06]} 45. Kh2 {[%clk 0:00:15]}  Nd8 {[%clk 0:00:05]} 46. Kh1 {[%clk 0:00:14]}  Rde7 {[%clk 0:00:05]} 47. Kh2 {[%clk 0:00:12]}  Bg8 {[%clk 0:00:05]} 48. Kg1 {[%clk 0:00:11]}  Qd7 {[%clk 0:00:04]} 49. Kh2 {[%clk 0:00:11]}  Ne6 {[%clk 0:00:04]} 50. Kg1 {[%clk 0:00:11]}  Kc6 {[%clk 0:00:04]} 51. Rhxg6 {[%clk 0:00:12]}  Rxg6 {[%clk 0:00:03]} 52. Rxg6 {[%clk 0:00:12]}  Rg7 {[%clk 0:00:03]} 53. Rh6 {[%clk 0:00:13]}  Rh7 {[%clk 0:00:03]} 54. Rf6 {[%clk 0:00:13]}  Rf7 {[%clk 0:00:03]} 55. Rh6 {[%clk 0:00:13]}  Rh7 {[%clk 0:00:02]} 56. Rf6 {[%clk 0:00:14]}  Rf7 {[%clk 0:00:02]} 57. Rh6 {[%clk 0:00:14]}  Rh7 {[%clk 0:00:03]} 1/2-1/2


[Site "https://www.chess.com"]

[Event "Titled Tuesday Blitz May 30 Early 2023"]
[White "Domingo Nunez, Ruben"]
[Black "Aggelis, Nikolaos"]
[WhiteFideId "22245570"]
[BlackFideId "4213220"]
[WhiteElo "2404"]
[BlackElo "2189"]
[Result "1-0"]
[Round "07"]
[TimeControl "180+2"]
[Date "2023.05.30"]
[WhiteClock "0:00:38"]
[BlackClock "0:00:32"]

1. c4 {[%clk 0:02:46]}  f5 {[%clk 0:02:58]} 2. Nf3 {[%clk 0:02:46]}  Nf6 {[%clk 0:02:57]} 3. g3 {[%clk 0:02:45]}  g6 {[%clk 0:02:58]} 4. Bg2 {[%clk 0:02:46]}  Bg7 {[%clk 0:02:59]} 5. d4 {[%clk 0:02:46]}  O-O {[%clk 0:02:59]} 6. d5 {[%clk 0:02:47]}  b5 {[%clk 0:02:51]} 7. cxb5 {[%clk 0:02:46]}  a6 {[%clk 0:02:51]} 8. bxa6 {[%clk 0:02:47]}  Nxa6 {[%clk 0:02:48]} 9. O-O {[%clk 0:02:47]}  Nb4 {[%clk 0:02:47]} 10. Nc3 {[%clk 0:02:47]}  Ne4 {[%clk 0:02:43]} 11. Nxe4 {[%clk 0:02:45]}  fxe4 {[%clk 0:02:43]} 12. Ng5 {[%clk 0:02:46]}  Rxa2 {[%clk 0:02:34]} 13. Rxa2 {[%clk 0:02:46]}  Nxa2 {[%clk 0:02:35]} 14. Bd2 {[%clk 0:02:44]}  e3 {[%clk 0:02:31]} 15. Bxe3 {[%clk 0:02:44]}  Nb4 {[%clk 0:02:28]} 16. Qb3 {[%clk 0:02:41]}  Na6 {[%clk 0:02:26]} 17. Ra1 {[%clk 0:01:55]}  d6 {[%clk 0:02:18]} 18. Ne6 {[%clk 0:01:55]}  Bxe6 {[%clk 0:02:16]} 19. dxe6 {[%clk 0:01:56]}  Nb8 {[%clk 0:01:53]} 20. Ra8 {[%clk 0:01:43]}  c5 {[%clk 0:01:52]} 21. Qb7 {[%clk 0:01:44]}  Bf6 {[%clk 0:01:47]} 22. Bh6 {[%clk 0:01:41]}  Bg7 {[%clk 0:01:23]} 23. Bg5 {[%clk 0:01:39]}  Qc8 {[%clk 0:00:40]} 24. Bxe7 {[%clk 0:01:19]}  Qxb7 {[%clk 0:00:40]} 25. Bxb7 {[%clk 0:01:20]}  Re8 {[%clk 0:00:40]} 26. Bxd6 {[%clk 0:01:19]}  Bxb2 {[%clk 0:00:36]} 27. Rxb8 {[%clk 0:00:47]}  Rxb8 {[%clk 0:00:35]} 28. Bxb8 {[%clk 0:00:48]}  c4 {[%clk 0:00:35]} 29. e7 {[%clk 0:00:38]}  Kf7 {[%clk 0:00:34]} 30. Bd6 {[%clk 0:00:38]}  c3 {[%clk 0:00:32]} 31. Bc6 {[%clk 0:00:38]} 1-0


[Site "https://www.chess.com"]

[Event "Titled Tuesday Blitz May 30 Early 2023"]
[White "Shukhman, Anna"]
[Black "Itgelt, Khuyagtsogt"]
[WhiteFideId "54180058"]
[BlackFideId "4902912"]
[WhiteElo "2235"]
[BlackElo "2227"]
[Result "1-0"]
[Round "07"]
[TimeControl "180+2"]
[Date "2023.05.30"]
[WhiteClock "0:00:42"]
[BlackClock "0:00:01"]

1. e4 {[%clk 0:03:00]}  d6 {[%clk 0:02:50]} 2. d4 {[%clk 0:03:00]}  c6 {[%clk 0:02:50]} 3. Nc3 {[%clk 0:03:00]}  Nf6 {[%clk 0:02:50]} 4. f4 {[%clk 0:02:59]}  Qa5 {[%clk 0:02:49]} 5. Bd3 {[%clk 0:02:57]}  e5 {[%clk 0:02:44]} 6. dxe5 {[%clk 0:02:54]}  dxe5 {[%clk 0:02:45]} 7. Nf3 {[%clk 0:02:54]}  Nbd7 {[%clk 0:02:31]} 8. Qe2 {[%clk 0:02:47]}  Bc5 {[%clk 0:02:25]} 9. Be3 {[%clk 0:02:42]}  exf4 {[%clk 0:02:24]} 10. Bxf4 {[%clk 0:02:36]}  Nf8 {[%clk 0:02:24]} 11. O-O-O {[%clk 0:02:35]}  Ng6 {[%clk 0:02:23]} 12. Bg5 {[%clk 0:02:28]}  Be6 {[%clk 0:02:23]} 13. Bxf6 {[%clk 0:02:27]}  gxf6 {[%clk 0:02:24]} 14. Bc4 {[%clk 0:02:23]}  Nf4 {[%clk 0:02:12]} 15. Qf1 {[%clk 0:02:20]}  Bb4 {[%clk 0:01:55]} 16. Nd4 {[%clk 0:01:43]}  Bxc3 {[%clk 0:01:35]} 17. Qxf4 {[%clk 0:01:40]}  Bxc4 {[%clk 0:00:52]} 18. Qxf6 {[%clk 0:01:38]}  Rg8 {[%clk 0:00:32]} 19. bxc3 {[%clk 0:01:34]}  Qg5+ {[%clk 0:00:30]} 20. Qxg5 {[%clk 0:01:32]}  Rxg5 {[%clk 0:00:31]} 21. Kb2 {[%clk 0:01:29]}  O-O-O {[%clk 0:00:24]} 22. g3 {[%clk 0:01:27]}  Re8 {[%clk 0:00:23]} 23. Nf5 {[%clk 0:01:26]}  Rxf5 {[%clk 0:00:07]} 24. exf5 {[%clk 0:01:26]}  Re2 {[%clk 0:00:08]} 25. Rhe1 {[%clk 0:01:15]}  Rxh2 {[%clk 0:00:08]} 26. Re8+ {[%clk 0:01:15]}  Kc7 {[%clk 0:00:09]} 27. Re7+ {[%clk 0:01:15]}  Kb6 {[%clk 0:00:09]} 28. Rdd7 {[%clk 0:01:14]}  Rg2 {[%clk 0:00:07]} 29. Rxb7+ {[%clk 0:01:14]}  Kc5 {[%clk 0:00:08]} 30. Rxa7 {[%clk 0:01:06]}  Rxg3 {[%clk 0:00:08]} 31. a4 {[%clk 0:01:03]}  h5 {[%clk 0:00:07]} 32. Re4 {[%clk 0:01:02]}  Rf3 {[%clk 0:00:06]} 33. Ra5+ {[%clk 0:01:01]}  Kb6 {[%clk 0:00:07]} 34. Rae5 {[%clk 0:01:01]}  Bd5 {[%clk 0:00:07]} 35. Rh4 {[%clk 0:01:01]}  f6 {[%clk 0:00:08]} 36. Re7 {[%clk 0:00:52]}  Rxf5 {[%clk 0:00:07]} 37. c4 {[%clk 0:00:52]}  Bf3 {[%clk 0:00:07]} 38. Kb3 {[%clk 0:00:49]}  Bg4 {[%clk 0:00:07]} 39. Kb4 {[%clk 0:00:46]}  c5+ {[%clk 0:00:07]} 40. Kb3 {[%clk 0:00:46]}  Rf3+ {[%clk 0:00:07]} 41. c3 {[%clk 0:00:46]}  Rf2 {[%clk 0:00:07]} 42. Rh1 {[%clk 0:00:45]}  Kc6 {[%clk 0:00:04]} 43. a5 {[%clk 0:00:44]}  Kd6 {[%clk 0:00:03]} 44. Rhe1 {[%clk 0:00:42]}  h4 {[%clk 0:00:03]} 45. a6 {[%clk 0:00:42]}  Bd1+ {[%clk 0:00:03]} 46. Rxd1+ {[%clk 0:00:41]}  Kxe7 {[%clk 0:00:01]} 47. a7 {[%clk 0:00:42]} 1-0


[Site "https://www.chess.com"]

[Event "Titled Tuesday Blitz May 30 Early 2023"]
[White "Uzcategui Rodriguez, Alejandro"]
[Black "Levitskiy, Andrey"]
[WhiteFideId "3903400"]
[BlackFideId "14132885"]
[WhiteElo "2252"]
[BlackElo "2347"]
[Result "1-0"]
[Round "07"]
[TimeControl "180+2"]
[Date "2023.05.30"]
[WhiteClock "0:01:35"]
[BlackClock "0:00:03"]

1. d4 {[%clk 0:03:00]}  Nf6 {[%clk 0:02:59]} 2. Nf3 {[%clk 0:03:00]}  d5 {[%clk 0:02:59]} 3. c3 {[%clk 0:03:00]}  e6 {[%clk 0:02:54]} 4. Bg5 {[%clk 0:02:59]}  c5 {[%clk 0:02:53]} 5. e3 {[%clk 0:02:59]}  Nc6 {[%clk 0:02:53]} 6. Nbd2 {[%clk 0:02:59]}  h6 {[%clk 0:02:51]} 7. Bh4 {[%clk 0:02:58]}  Be7 {[%clk 0:02:51]} 8. Bd3 {[%clk 0:02:57]}  O-O {[%clk 0:02:50]} 9. O-O {[%clk 0:02:50]}  cxd4 {[%clk 0:02:41]} 10. exd4 {[%clk 0:02:44]}  Rb8 {[%clk 0:02:38]} 11. Qe2 {[%clk 0:02:38]}  a6 {[%clk 0:02:36]} 12. Ne5 {[%clk 0:02:38]}  Nxe5 {[%clk 0:01:55]} 13. dxe5 {[%clk 0:02:39]}  Nd7 {[%clk 0:01:55]} 14. Bxe7 {[%clk 0:02:38]}  Qxe7 {[%clk 0:01:56]} 15. f4 {[%clk 0:02:38]}  b5 {[%clk 0:01:47]} 16. Qh5 {[%clk 0:02:35]}  Bb7 {[%clk 0:01:23]} 17. Nf3 {[%clk 0:02:34]}  Nc5 {[%clk 0:01:14]} 18. Bc2 {[%clk 0:02:31]}  Ne4 {[%clk 0:01:14]} 19. Nd4 {[%clk 0:02:30]}  b4 {[%clk 0:01:06]} 20. Rae1 {[%clk 0:02:21]}  Rbc8 {[%clk 0:00:58]} 21. Bxe4 {[%clk 0:02:15]}  dxe4 {[%clk 0:00:58]} 22. f5 {[%clk 0:02:16]}  exf5 {[%clk 0:00:57]} 23. Nxf5 {[%clk 0:02:17]}  Qe6 {[%clk 0:00:45]} 24. Re3 {[%clk 0:02:05]}  Kh7 {[%clk 0:00:28]} 25. Rg3 {[%clk 0:01:59]}  Rg8 {[%clk 0:00:29]} 26. Nxg7 {[%clk 0:01:43]}  Rxg7 {[%clk 0:00:18]} 27. Rf6 {[%clk 0:01:42]}  Qxf6 {[%clk 0:00:03]} 28. exf6 {[%clk 0:01:41]}  Rg6 {[%clk 0:00:04]} 29. Rxg6 {[%clk 0:01:36]}  fxg6 {[%clk 0:00:05]} 30. Qe5 {[%clk 0:01:36]}  Kg8 {[%clk 0:00:03]} 31. Qe7 {[%clk 0:01:35]} 1-0


[Site "https://www.chess.com"]

[Event "Titled Tuesday Blitz May 30 Early 2023"]
[White "Jeet, Jain"]
[Black "Schuh, Karsten"]
[WhiteFideId "5073022"]
[BlackFideId "4637950"]
[WhiteElo "2067"]
[BlackElo "2138"]
[Result "1-0"]
[Round "07"]
[TimeControl "180+2"]
[Date "2023.05.30"]
[WhiteClock "0:00:43"]
[BlackClock "0:00:04"]

1. d4 {[%clk 0:03:00]}  f5 {[%clk 0:02:59]} 2. Bg5 {[%clk 0:02:59]}  g6 {[%clk 0:02:59]} 3. Nc3 {[%clk 0:02:58]}  Bg7 {[%clk 0:02:58]} 4. e4 {[%clk 0:02:59]}  fxe4 {[%clk 0:02:58]} 5. Nxe4 {[%clk 0:03:00]}  d5 {[%clk 0:02:59]} 6. Ng3 {[%clk 0:02:59]}  Nc6 {[%clk 0:02:57]} 7. Nf3 {[%clk 0:02:57]}  Bg4 {[%clk 0:02:56]} 8. c3 {[%clk 0:02:57]}  Nf6 {[%clk 0:02:51]} 9. Be2 {[%clk 0:02:55]}  O-O {[%clk 0:02:51]} 10. O-O {[%clk 0:02:54]}  Qd7 {[%clk 0:02:35]} 11. Ne5 {[%clk 0:02:51]}  Nxe5 {[%clk 0:02:21]} 12. dxe5 {[%clk 0:02:52]}  Bxe2 {[%clk 0:02:17]} 13. Qxe2 {[%clk 0:02:53]}  Ne8 {[%clk 0:02:11]} 14. Rad1 {[%clk 0:02:51]}  c6 {[%clk 0:02:05]} 15. h4 {[%clk 0:02:24]}  Nc7 {[%clk 0:02:01]} 16. h5 {[%clk 0:02:22]}  Ne6 {[%clk 0:01:51]} 17. Bc1 {[%clk 0:02:18]}  Nf4 {[%clk 0:01:33]} 18. Bxf4 {[%clk 0:02:16]}  Rxf4 {[%clk 0:01:32]} 19. hxg6 {[%clk 0:02:17]}  hxg6 {[%clk 0:01:32]} 20. Qd3 {[%clk 0:02:17]}  Qe6 {[%clk 0:01:26]} 21. Ne2 {[%clk 0:02:14]}  Rh4 {[%clk 0:00:55]} 22. f4 {[%clk 0:01:53]}  Rf8 {[%clk 0:00:54]} 23. g3 {[%clk 0:01:44]}  Rh5 {[%clk 0:00:47]} 24. Qf3 {[%clk 0:01:19]}  Bxe5 {[%clk 0:00:40]} 25. Rde1 {[%clk 0:01:10]}  Qh3 {[%clk 0:00:30]} 26. Qg2 {[%clk 0:01:00]}  Bd6 {[%clk 0:00:23]} 27. Nd4 {[%clk 0:00:57]}  Qxg2+ {[%clk 0:00:18]} 28. Kxg2 {[%clk 0:00:58]}  Kf7 {[%clk 0:00:19]} 29. f5 {[%clk 0:00:56]}  gxf5 {[%clk 0:00:18]} 30. Nxf5 {[%clk 0:00:57]}  Kg8 {[%clk 0:00:16]} 31. Nxe7+ {[%clk 0:00:47]}  Bxe7 {[%clk 0:00:16]} 32. Rxe7 {[%clk 0:00:48]}  Rxf1 {[%clk 0:00:11]} 33. Kxf1 {[%clk 0:00:48]}  Rf5+ {[%clk 0:00:11]} 34. Kg2 {[%clk 0:00:48]}  Rf7 {[%clk 0:00:12]} 35. Rxf7 {[%clk 0:00:44]}  Kxf7 {[%clk 0:00:12]} 36. Kf3 {[%clk 0:00:45]}  Kf6 {[%clk 0:00:11]} 37. Kf4 {[%clk 0:00:45]}  c5 {[%clk 0:00:11]} 38. g4 {[%clk 0:00:45]}  b6 {[%clk 0:00:10]} 39. a4 {[%clk 0:00:45]}  a6 {[%clk 0:00:10]} 40. b3 {[%clk 0:00:45]}  b5 {[%clk 0:00:10]} 41. a5 {[%clk 0:00:45]}  d4 {[%clk 0:00:05]} 42. cxd4 {[%clk 0:00:45]}  c4 {[%clk 0:00:05]} 43. bxc4 {[%clk 0:00:43]}  b4 {[%clk 0:00:05]} 44. Ke3 {[%clk 0:00:43]}  b3 {[%clk 0:00:06]} 45. Kd2 {[%clk 0:00:43]}  b2 {[%clk 0:00:04]} 46. Kc2 {[%clk 0:00:43]} 1-0


[Site "https://www.chess.com"]

[Event "Titled Tuesday Blitz May 30 Early 2023"]
[White "Souleidis, Georgios"]
[Black "Topalov, Aleksandar"]
[WhiteFideId "4206827"]
[BlackFideId "925659"]
[WhiteElo "2401"]
[BlackElo "2151"]
[Result "0-1"]
[Round "07"]
[TimeControl "180+2"]
[Date "2023.05.30"]
[WhiteClock "0:00:00"]
[BlackClock "0:00:20"]

1. e4 {[%clk 0:02:58]}  e6 {[%clk 0:02:59]} 2. d4 {[%clk 0:02:58]}  d5 {[%clk 0:02:59]} 3. Nc3 {[%clk 0:02:58]}  Bb4 {[%clk 0:02:58]} 4. Ne2 {[%clk 0:02:57]}  Nf6 {[%clk 0:02:57]} 5. e5 {[%clk 0:02:55]}  Ng8 {[%clk 0:02:52]} 6. a3 {[%clk 0:02:51]}  Be7 {[%clk 0:02:52]} 7. f4 {[%clk 0:02:49]}  g6 {[%clk 0:02:52]} 8. Be3 {[%clk 0:02:49]}  h5 {[%clk 0:02:52]} 9. g3 {[%clk 0:02:46]}  b6 {[%clk 0:02:52]} 10. Bg2 {[%clk 0:02:45]}  Ba6 {[%clk 0:02:52]} 11. O-O {[%clk 0:02:43]}  Nh6 {[%clk 0:02:52]} 12. Kh1 {[%clk 0:02:42]}  Nf5 {[%clk 0:02:51]} 13. Bf2 {[%clk 0:02:31]}  c5 {[%clk 0:02:47]} 14. Re1 {[%clk 0:02:23]}  Nc6 {[%clk 0:02:46]} 15. dxc5 {[%clk 0:02:03]}  bxc5 {[%clk 0:02:46]} 16. Qd2 {[%clk 0:01:37]}  Rb8 {[%clk 0:02:40]} 17. Na4 {[%clk 0:01:28]}  Bxe2 {[%clk 0:02:11]} 18. Rxe2 {[%clk 0:01:26]}  c4 {[%clk 0:02:12]} 19. Ree1 {[%clk 0:01:12]}  O-O {[%clk 0:02:10]} 20. h3 {[%clk 0:00:57]}  Kg7 {[%clk 0:02:10]} 21. Rab1 {[%clk 0:00:55]}  Rb5 {[%clk 0:01:51]} 22. Nc3 {[%clk 0:00:55]}  Rb7 {[%clk 0:01:48]} 23. Ne2 {[%clk 0:00:55]}  Qb8 {[%clk 0:01:46]} 24. c3 {[%clk 0:00:55]}  Bxa3 {[%clk 0:01:41]} 25. g4 {[%clk 0:00:24]}  hxg4 {[%clk 0:01:40]} 26. hxg4 {[%clk 0:00:25]}  Nh6 {[%clk 0:01:39]} 27. Bf3 {[%clk 0:00:11]}  Rxb2 {[%clk 0:01:31]} 28. Rxb2 {[%clk 0:00:11]}  Qxb2 {[%clk 0:01:32]} 29. Qe3 {[%clk 0:00:11]}  Be7 {[%clk 0:01:29]} 30. Kg2 {[%clk 0:00:11]}  Rh8 {[%clk 0:01:24]} 31. Rh1 {[%clk 0:00:11]}  a5 {[%clk 0:01:20]} 32. Ng3 {[%clk 0:00:05]}  a4 {[%clk 0:01:07]} 33. f5 {[%clk 0:00:05]}  gxf5 {[%clk 0:01:03]} 34. gxf5 {[%clk 0:00:05]}  Nxf5 {[%clk 0:00:28]} 35. Nxf5+ {[%clk 0:00:05]}  exf5 {[%clk 0:00:28]} 36. Rxh8 {[%clk 0:00:06]}  Kxh8 {[%clk 0:00:29]} 37. Qh6+ {[%clk 0:00:07]}  Kg8 {[%clk 0:00:29]} 38. Bxd5 {[%clk 0:00:07]}  Nxe5 {[%clk 0:00:23]} 39. Qf4 {[%clk 0:00:03]}  Nd3 {[%clk 0:00:20]} 40. Qg3+ {[%clk 0:00:00]}  Kf8 {[%clk 0:00:20]} 0-1


[Site "https://www.chess.com"]

[Event "Titled Tuesday Blitz May 30 Early 2023"]
[White "SashaKuzhilniy"]
[Black "Rodriguez Santiago, Jaime"]
[BlackFideId "3100898"]
[WhiteElo "2625"]
[BlackElo "2025"]
[Result "1-0"]
[Round "07"]
[TimeControl "180+2"]
[Date "2023.05.30"]
[WhiteClock "0:01:50"]
[BlackClock "0:00:18"]

1. b3 {[%clk 0:03:00]}  e5 {[%clk 0:02:57]} 2. Bb2 {[%clk 0:03:00]}  Nc6 {[%clk 0:02:58]} 3. c4 {[%clk 0:02:59]}  Nf6 {[%clk 0:02:55]} 4. e3 {[%clk 0:02:59]}  Bd6 {[%clk 0:02:53]} 5. Nc3 {[%clk 0:02:55]}  e4 {[%clk 0:02:49]} 6. Nge2 {[%clk 0:02:49]}  Qe7 {[%clk 0:02:46]} 7. Ng3 {[%clk 0:02:49]}  Be5 {[%clk 0:02:35]} 8. Qb1 {[%clk 0:02:46]}  d5 {[%clk 0:02:03]} 9. Nxd5 {[%clk 0:02:38]}  Nxd5 {[%clk 0:02:00]} 10. cxd5 {[%clk 0:02:38]}  Nb4 {[%clk 0:01:52]} 11. Bb5+ {[%clk 0:02:37]}  c6 {[%clk 0:01:49]} 12. dxc6 {[%clk 0:02:37]}  bxc6 {[%clk 0:01:50]} 13. Bc4 {[%clk 0:02:35]}  Bxb2 {[%clk 0:01:33]} 14. Qxb2 {[%clk 0:02:36]}  Be6 {[%clk 0:01:27]} 15. Qxg7 {[%clk 0:02:27]}  O-O-O {[%clk 0:00:57]} 16. O-O {[%clk 0:02:25]}  h5 {[%clk 0:00:49]} 17. Bxe6+ {[%clk 0:02:15]}  Qxe6 {[%clk 0:00:48]} 18. Qc3 {[%clk 0:02:15]}  Nd5 {[%clk 0:00:46]} 19. Qc4 {[%clk 0:02:13]}  h4 {[%clk 0:00:47]} 20. Nxe4 {[%clk 0:02:13]}  Rhg8 {[%clk 0:00:44]} 21. f3 {[%clk 0:01:52]}  Kb7 {[%clk 0:00:18]} 22. Nc5+ {[%clk 0:01:50]} 1-0


[Site "https://www.chess.com"]

[Event "Titled Tuesday Blitz May 30 Early 2023"]
[White "Girya, Olga"]
[Black "Atoufi, Pedram"]
[WhiteFideId "4195752"]
[BlackFideId "12501654"]
[WhiteElo "2263"]
[BlackElo "2228"]
[Result "0-1"]
[Round "07"]
[TimeControl "180+2"]
[Date "2023.05.30"]
[WhiteClock "0:00:00"]
[BlackClock "0:00:17"]

1. d4 {[%clk 0:03:00]}  d5 {[%clk 0:02:58]} 2. Nf3 {[%clk 0:03:00]}  Nf6 {[%clk 0:02:57]} 3. c4 {[%clk 0:03:00]}  e6 {[%clk 0:02:56]} 4. Nc3 {[%clk 0:03:00]}  Nc6 {[%clk 0:02:54]} 5. Bg5 {[%clk 0:02:52]}  Bb4 {[%clk 0:02:53]} 6. e3 {[%clk 0:02:48]}  O-O {[%clk 0:02:47]} 7. Qc2 {[%clk 0:02:29]}  Bd7 {[%clk 0:02:44]} 8. Bd3 {[%clk 0:02:26]}  Bxc3+ {[%clk 0:02:43]} 9. bxc3 {[%clk 0:02:25]}  h6 {[%clk 0:02:39]} 10. Bh4 {[%clk 0:02:24]}  g5 {[%clk 0:02:37]} 11. Bg3 {[%clk 0:02:24]}  g4 {[%clk 0:02:35]} 12. Ne5 {[%clk 0:02:13]}  Nxe5 {[%clk 0:02:18]} 13. Bxe5 {[%clk 0:02:14]}  dxc4 {[%clk 0:02:18]} 14. Bxc4 {[%clk 0:02:11]}  b5 {[%clk 0:02:14]} 15. Bd3 {[%clk 0:02:11]}  Bc6 {[%clk 0:02:10]} 16. f3 {[%clk 0:02:05]}  Re8 {[%clk 0:02:04]} 17. O-O {[%clk 0:01:34]}  Nd7 {[%clk 0:01:56]} 18. Bf4 {[%clk 0:01:31]}  gxf3 {[%clk 0:01:54]} 19. gxf3 {[%clk 0:01:14]}  Kh8 {[%clk 0:01:50]} 20. e4 {[%clk 0:00:45]}  Qf6 {[%clk 0:00:55]} 21. Bg3 {[%clk 0:00:28]}  Rg8 {[%clk 0:00:52]} 22. Kh1 {[%clk 0:00:19]}  Rac8 {[%clk 0:00:46]} 23. Qf2 {[%clk 0:00:19]}  Qg6 {[%clk 0:00:45]} 24. Rg1 {[%clk 0:00:19]}  Qh5 {[%clk 0:00:42]} 25. Bf4 {[%clk 0:00:17]}  e5 {[%clk 0:00:39]} 26. dxe5 {[%clk 0:00:15]}  Nc5 {[%clk 0:00:38]} 27. Be2 {[%clk 0:00:15]}  Nxe4 {[%clk 0:00:34]} 28. Rxg8+ {[%clk 0:00:03]}  Rxg8 {[%clk 0:00:29]} 29. Qe3 {[%clk 0:00:03]}  Nd2 {[%clk 0:00:28]} 30. Rg1 {[%clk 0:00:02]}  Bxf3+ {[%clk 0:00:24]} 31. Bxf3 {[%clk 0:00:01]}  Rxg1+ {[%clk 0:00:20]} 32. Kxg1 {[%clk 0:00:01]}  Nxf3+ {[%clk 0:00:20]} 33. Kf2 {[%clk 0:00:01]}  Nxh2 {[%clk 0:00:19]} 34. Qxa7 {[%clk 0:00:01]}  Qf3+ {[%clk 0:00:17]} 35. Kg1 {[%clk 0:00:00]}  Qxf4 {[%clk 0:00:17]} 0-1


[Site "https://www.chess.com"]

[Event "Titled Tuesday Blitz May 30 Early 2023"]
[White "Sowul, Bartosz"]
[Black "Janik, Igor"]
[WhiteFideId "1137590"]
[BlackFideId "1159259"]
[WhiteElo "2188"]
[BlackElo "2484"]
[Result "0-1"]
[Round "07"]
[TimeControl "180+2"]
[Date "2023.05.30"]
[WhiteClock "0:00:04"]
[BlackClock "0:00:25"]

1. e4 {[%clk 0:02:53]}  c6 {[%clk 0:02:58]} 2. d4 {[%clk 0:02:53]}  d5 {[%clk 0:02:58]} 3. e5 {[%clk 0:02:54]}  c5 {[%clk 0:02:58]} 4. Nf3 {[%clk 0:02:53]}  Bg4 {[%clk 0:02:58]} 5. dxc5 {[%clk 0:02:40]}  e6 {[%clk 0:02:58]} 6. Be3 {[%clk 0:02:39]}  Ne7 {[%clk 0:02:57]} 7. c3 {[%clk 0:02:35]}  Nd7 {[%clk 0:02:57]} 8. Nbd2 {[%clk 0:02:35]}  Nf5 {[%clk 0:02:48]} 9. Bd4 {[%clk 0:02:30]}  Bxf3 {[%clk 0:02:44]} 10. Nxf3 {[%clk 0:02:27]}  Bxc5 {[%clk 0:02:43]} 11. Bxc5 {[%clk 0:02:21]}  Nxc5 {[%clk 0:02:44]} 12. Bb5+ {[%clk 0:02:21]}  Nd7 {[%clk 0:02:40]} 13. Qa4 {[%clk 0:02:20]}  a6 {[%clk 0:02:38]} 14. Bxd7+ {[%clk 0:02:06]}  Qxd7 {[%clk 0:02:39]} 15. Qxd7+ {[%clk 0:02:06]}  Kxd7 {[%clk 0:02:40]} 16. Rd1 {[%clk 0:02:00]}  Rhc8 {[%clk 0:02:40]} 17. Nd4 {[%clk 0:01:57]}  Ne7 {[%clk 0:02:39]} 18. f4 {[%clk 0:01:52]}  b5 {[%clk 0:02:39]} 19. a3 {[%clk 0:01:49]}  Rab8 {[%clk 0:02:36]} 20. h4 {[%clk 0:01:38]}  h5 {[%clk 0:02:34]} 21. Rh3 {[%clk 0:01:37]}  g6 {[%clk 0:02:34]} 22. Rhd3 {[%clk 0:01:34]}  a5 {[%clk 0:02:31]} 23. Nb3 {[%clk 0:01:30]}  Ra8 {[%clk 0:02:26]} 24. Kf2 {[%clk 0:01:22]}  Ke8 {[%clk 0:02:20]} 25. Nd4 {[%clk 0:01:20]}  Rab8 {[%clk 0:02:20]} 26. Nb3 {[%clk 0:01:17]}  Ra8 {[%clk 0:02:10]} 27. Nd4 {[%clk 0:01:17]}  Rcb8 {[%clk 0:02:05]} 28. Rc1 {[%clk 0:01:00]}  b4 {[%clk 0:02:05]} 29. cxb4 {[%clk 0:00:58]}  axb4 {[%clk 0:02:05]} 30. Ke3 {[%clk 0:00:43]}  Kd7 {[%clk 0:01:56]} 31. Rc2 {[%clk 0:00:39]}  bxa3 {[%clk 0:01:53]} 32. bxa3 {[%clk 0:00:40]}  Ra7 {[%clk 0:01:38]} 33. Rdc3 {[%clk 0:00:38]}  Rb1 {[%clk 0:01:36]} 34. g3 {[%clk 0:00:29]}  Rab7 {[%clk 0:01:22]} 35. Rd3 {[%clk 0:00:17]}  Re1+ {[%clk 0:01:22]} 36. Kf2 {[%clk 0:00:16]}  Ra1 {[%clk 0:01:23]} 37. Rdc3 {[%clk 0:00:12]}  Rd1 {[%clk 0:01:08]} 38. Nf3 {[%clk 0:00:12]}  Ra7 {[%clk 0:01:04]} 39. Ng5 {[%clk 0:00:10]}  Ke8 {[%clk 0:00:58]} 40. Rb3 {[%clk 0:00:11]}  Nf5 {[%clk 0:00:45]} 41. Rb8+ {[%clk 0:00:09]}  Ke7 {[%clk 0:00:45]} 42. Rcb2 {[%clk 0:00:08]}  Nh6 {[%clk 0:00:41]} 43. Rh8 {[%clk 0:00:07]}  Ng4+ {[%clk 0:00:41]} 44. Ke2 {[%clk 0:00:07]}  Rh1 {[%clk 0:00:35]} 45. Rbb8 {[%clk 0:00:07]}  Rh2+ {[%clk 0:00:34]} 46. Kf1 {[%clk 0:00:06]}  Rc7 {[%clk 0:00:25]} 47. Rbd8 {[%clk 0:00:04]}  Rc1# {[%clk 0:00:25]} 0-1


[Site "https://www.chess.com"]